[Event "44th Chess Olympiad Women 2022"]
[Site "Chennai"]
[Date "2022.08.01"]
[Round "4.4"]
[White "Roebers, Eline"]
[Black "Kashlinskaya, Alina"]
[Result "1/2-1/2"]
[WhiteElo "2344"]
[BlackElo "2505"]
[Annotator "TA"]
[PlyCount "115"]
[EventDate "2022.??.??"]
[TimeControl "60"]

{[%evp 16,115,20,19,30,20,19,28,27,16,19,0,18,0,0,0,0,0,0,0,0,0,0,0,0,0,5,9,26,
9,24,3,39,39,53,0,0,0,0,0,0,0,0,0,0,0,0,0,2,2,37,0,0,0,0,0,0,0,0,0,143,151,112,
-132,-154,-143,-116,-98,-111,-378,-385,-372,-353,-422,0,0,0,0,0,0,7,7,7,0,7,0,
7,7,7,7,7,7,7,7,7,7,7,7,7,7,7,7]} 1. e4 {[%emt 0:00:06]} e5 {[%emt 0:00:10]} 2.
Nf3 {[%emt 0:00:11]} Nf6 {[%emt 0:00:10]} 3. d4 {[%emt 0:00:16]} Nxe4 {[%emt 0:
00:00]} 4. Bd3 {[%emt 0:00:26]} d5 {[%emt 0:00:14]} 5. Nxe5 {[%emt 0:00:35]}
Nd7 {[%emt 0:00:33]} 6. Nc3 {[%emt 0:02:16]} Nxc3 {[%emt 0:03:58]} 7. bxc3 {
[%emt 0:00:07]} Nxe5 {[%emt 0:02:37]} 8. dxe5 {[%emt 0:00:06]} Be7 {[%emt 0:00:
00]} 9. O-O $1 {[%emt 0:02:11] 9.0-0 scores better than 9.Qh5.} O-O {[%emt 0:
00:00] C43: Petroff Defence: 3 d4.} 10. f4 {[%emt 0:12:30]} Bc5+ {[%emt 0:00:
00]} 11. Kh1 {[%emt 0:00:06]} f5 {[%emt 0:06:27] [#] White has an edge.} 12.
Rb1 $146 {[%emt 0:07:11]} ({Predecessor:} 12. Qe2 c6 13. Bd2 Be6 14. a4 Rf7 15.
Rfd1 Rd7 16. Be1 g6 17. h3 g5 18. Bf2 Bxf2 19. Qxf2 gxf4 {1-0 (48) Nickel,A 
(2642)-Mueller,G (2575) ICCF email 2010}) 12... b6 {[%emt 0:05:29]} 13. Qe2 {
[%emt 0:07:54]} Be6 {[%emt 0:03:29]} 14. Bb5 {[%emt 0:05:05]} Qe7 {[%emt 0:00:
00]} 15. Rd1 {[%emt 0:05:32]} Rad8 {[%emt 0:01:52]} 16. Be3 {[%emt 0:11:11]}
Bxe3 {[%emt 0:04:51]} 17. Qxe3 {[%emt 0:04:15]} c5 {[%emt 0:00:31]} 18. Be2 {
[%emt 0:10:07]} Qd7 {[%emt 0:05:36]} 19. c4 {[%emt 0:04:39]} d4 {[%emt 0:07:24]
} 20. Qb3 {[%emt 0:03:18]} Qe7 {[%emt 0:04:56]} 21. a4 {[%emt 0:02:15][%cal
Ya4a5]} Qc7 {[%emt 0:09:57]} 22. Ra1 {[%emt 0:02:05][%cal Ya4a5]} Rd7 {[%emt 0:
00:00]} 23. Bf3 {[%emt 0:04:57]} Rfd8 {[%emt 0:00:46][%cal Yg7g5]} (23... g5 $5
{[%cal Rg5f4]}) 24. h4 {[%emt 0:01:55]} Kh8 {[%emt 0:07:28]} 25. Qb5 {[%emt 0:
00:00]} ({White should try} 25. Kg1 $14) 25... Rb8 $11 {[%emt 0:02:42]} 26. g3
{[%emt 0:01:22]} Qc8 {[%emt 0:00:59]} 27. Qb3 {[%emt 0:00:29]} Qg8 {[%emt 0:00:
00]} 28. Be2 {[%emt 0:00:18]} a6 {[%emt 0:00:50][%cal Yb6b5]} 29. Qd3 {[%emt 0:
00:00]} b5 {[%emt 0:01:13]} 30. axb5 {[%emt 0:00:06]} axb5 {[%emt 0:00:01]} 31.
cxb5 {[%emt 0:00:12] Black must now prevent c4.} c4 {[%emt 0:00:28]} 32. Qa3
$36 {[%emt 0:00:07] next Qb4 is good for White. White has the initiative.} Bd5+
{[%emt 0:00:28]} 33. Kg1 {[%emt 0:02:13]} (33. Kh2 $5 {[%cal Rd1d4]}) 33... Be4
{[%emt 0:03:07]} 34. Qa2 {[%emt 0:01:19]} Rc8 {[%emt 0:02:45]} 35. Bf1 {
[%emt 0:02:20]} Qd5 {[%emt 0:01:10]} 36. b6 {[%emt 0:00:00]} h6 {[%emt 0:01:14]
} 37. Qa6 {[%emt 0:01:30]} Qc5 {[%emt 0:02:22]} (37... Rb7 $11 {keeps the
balance.} 38. Kh2 Qc5) 38. Ra5 $16 {[%emt 0:01:06]} Qc6 {[%emt 0:03:11]} 39.
Ra4 $2 {[%emt 0:00:47]} (39. b7 $1 $16 {[%cal Rb7c8]} Qxa6 40. Rxa6 Bxb7 41.
Ra7) 39... d3 $1 $17 {[%emt 0:01:03]} 40. cxd3 {[%emt 0:00:00]} cxd3 {[%emt 0:
03:44] ( -> ...Qc5+)} 41. Ra2 {[%emt 0:16:26]} Rb8 {[%emt 0:16:04] Black has
strong compensation.} 42. Rb2 $2 {[%emt 0:00:00]} (42. Kh2 $17) 42... Qc5+ $19
{[%emt 0:03:41]} 43. Kh2 {[%emt 0:00:05] [#]} Rdb7 $1 {[%emt 0:01:46][%cal
Rb7b6]} 44. Qb5 {[%emt 0:00:00] [#]} ({But not} 44. Bxd3 Rxb6 45. Rc2 Qxc2+ 46.
Bxc2 Rxa6 $19) 44... Qe3 {[%emt 0:02:59]} (44... Qc8 $1 $19 45. Qa5 (45. Bxd3
$2 Rxb6 46. Qxb6 Rxb6 $19) 45... Rxb6 46. Rxb6 Rxb6 47. Bxd3 Rb2+ 48. Rd2 Rxd2+
49. Qxd2 Qd7) 45. Rxd3 $11 {[%emt 0:01:25] Dancing on a razor blade. The
position is equal.} ({Avoid the trap} 45. Bxd3 $2 Bf3 46. Bxf5 Bxd1 $19) 45...
Bxd3 {[%emt 0:03:31]} 46. Qxd3 {[%emt 0:00:05]} Qxd3 {[%emt 0:03:01]} (46...
Qe4 {seems wilder.} 47. Qxe4 fxe4 48. Rb4 Rxb6 49. Rxe4 Rb4) 47. Bxd3 {[%emt 0:
00:05]} Rxb6 {[%emt 0:00:26]} 48. Rxb6 {[%emt 0:00:12]} Rxb6 {[%emt 0:00:05]}
49. Bxf5 {[%emt 0:00:05] Endgame KR-KB} Kg8 {[%emt 0:01:11]} 50. Kh3 {[%emt 0:
03:14]} Kf7 {[%emt 0:00:00]} 51. Kg4 {[%emt 0:01:36]} Rb4 {[%emt 0:00:26]} 52.
Bd3 {[%emt 0:01:06]} Rd4 {[%emt 0:01:29]} 53. Bb1 {[%emt 0:00:11]} Ra4 {
[%emt 0:00:14]} 54. Bc2 {[%emt 0:03:54]} Ra3 {[%emt 0:00:09]} 55. h5 {[%emt 0:
01:20]} Rc3 {[%emt 0:00:00]} 56. Be4 {[%emt 0:00:52]} Re3 {[%emt 0:00:10]} 57.
Bd5+ {[%emt 0:00:31]} Ke7 {[%emt 0:00:05]} 58. Kh4 {[%emt 0:01:45] Black had
all chances to win. Weighted Error Value: White=0.23 (precise) /Black=0.18 
(very precise)} 1/2-1/2

[Event "44th Chess Olympiad Women 2022"]
[Site "Chennai"]
[Date "2022.08.01"]
[Round "4.4"]
[White "Rudzinska, Michalina"]
[Black "Lanchava, Tea"]
[Result "1-0"]
[WhiteElo "2315"]
[BlackElo "2257"]
[Annotator "TA"]
[PlyCount "85"]
[EventDate "2022.??.??"]
[TimeControl "60"]

{[%evp 12,85,68,60,63,41,49,45,62,51,39,38,39,46,39,27,38,22,44,27,46,4,5,5,5,
5,18,-10,6,0,0,0,0,0,0,-45,0,-27,118,107,374,404,396,410,387,368,447,443,445,
447,447,418,424,397,361,341,683,332,658,325,341,208,322,315,312,308,2198,1893,
7256,6571,5322,5218,2605,2536,868,808]} 1. e4 {[%emt 0:00:03]} c6 {[%emt 0:00:
00]} 2. d4 {[%emt 0:00:10]} g6 {[%emt 0:00:14]} 3. Nc3 {[%emt 0:00:13]} Bg7 {
[%emt 0:00:30]} 4. f4 {[%emt 0:00:17]} d5 {[%emt 0:00:25]} 5. e5 {[%emt 0:00:
00]} h5 {[%emt 0:00:26]} 6. h3 {[%emt 0:00:11]} Nh6 {[%emt 0:02:31]} 7. Be3 {
[%emt 0:00:12]} a5 {[%emt 0:05:56] [#] B15: Caro-Kann: 3 Nc3:3...g6 and 3...
dxe4 4 Nxe4 Nf6 5 Nxf6+ exf6.} 8. a4 $146 {[%emt 0:03:56]} ({Predecessor:} 8.
Nf3 Na6 9. g3 Nc7 10. Qd2 b6 11. Be2 Ne6 12. O-O-O Nf5 13. Bf2 Bh6 14. Bd3 Ba6
15. Bxa6 Rxa6 {1-0 (28) Acs,P (2410)-Mihajlovskij,S (2245) Menorca 1996}) 8...
Na6 {[%emt 0:06:47]} 9. Nf3 {[%emt 0:01:50]} Nf5 {[%emt 0:10:39] White is
slightly better.} 10. Bf2 {[%emt 0:00:11]} h4 {[%emt 0:01:54]} 11. Be2 {
[%emt 0:03:47]} Bf8 {[%emt 0:03:02]} 12. Qd2 {[%emt 0:04:51]} e6 {[%emt 0:00:
00]} 13. O-O {[%emt 0:13:27]} b6 {[%emt 0:06:18]} 14. Nd1 {[%emt 0:07:12]} Nc7
{[%emt 0:02:03]} 15. Ne3 {[%emt 0:08:48]} Ba6 {[%emt 0:04:57]} 16. Ng4 {
[%emt 0:02:57]} Be7 {[%emt 0:00:48] Inhibits Nf6+.} 17. Rfc1 {[%emt 0:01:59]}
Bxe2 {[%emt 0:03:07]} 18. Qxe2 {[%emt 0:00:05]} Na6 {[%emt 0:03:18]} 19. c4 {
[%emt 0:03:24]} Kf8 {[%emt 0:04:57]} 20. cxd5 {[%emt 0:03:48]} Qxd5 {[%emt 0:
00:00]} 21. Nf6 {[%emt 0:04:36]} Bxf6 {[%emt 0:01:05]} 22. exf6 {[%emt 0:00:07]
} Nb4 {[%emt 0:04:22]} 23. Rd1 {[%emt 0:09:49]} Qd6 {[%emt 0:04:04]} 24. Qe5 {
[%emt 0:01:09]} Rd8 {[%emt 0:02:55] [#]} (24... Qd8 $11) 25. d5 $1 $16 {
[%emt 0:06:12]} cxd5 {[%emt 0:04:31] This move loses the game for Black.} (
25... Nxd5 $16 26. Bxb6 Ra8) 26. Qxd6+ $18 {[%emt 0:00:27]} Nxd6 {[%emt 0:11:
23]} (26... Rxd6 $2 27. Rac1 Nc6 28. Ne5 $18) 27. Bxb6 {[%emt 0:00:00]} Ra8 {
[%emt 0:00:42]} 28. Bc5 {[%emt 0:02:51]} Ra6 {[%emt 0:00:05]} 29. Rac1 {
[%emt 0:02:15]} Ke8 {[%emt 0:00:13]} 30. Bxd6 {[%emt 0:00:32]} (30. Ne5 Rh5 31.
Bxd6 Rxd6 $18) 30... Rxd6 {[%emt 0:00:07]} 31. Rc8+ {[%emt 0:02:43]} Rd8 {
[%emt 0:00:07]} 32. Rdc1 {[%emt 0:00:35] And now Ne5 would win.} Rh5 {[%emt 0:
04:13]} 33. Ng5 {[%emt 0:02:31]} ({Not} 33. Ne5 Rf5 $16) 33... Rxc8 {[%emt 0:
06:46]} (33... d4 34. Rxd8+ Kxd8 35. Nxf7+ Kd7) 34. Rxc8+ {[%emt 0:00:00]
Endgame KRN-KRN} Kd7 {[%emt 0:00:04]} 35. Ra8 {[%emt 0:04:19]} (35. Rf8 $142)
35... d4 {[%emt 0:00:42]} 36. Rxa5 {[%emt 0:04:57] Ra7+ is the strong threat.}
Nd5 {[%emt 0:01:00]} (36... Kc6 {keeps fighting.} 37. Rb5 Nd5 38. Nxf7 d3) 37.
Nxf7 {[%emt 0:01:32]} d3 {[%emt 0:00:18] [#] aiming for ...d2.} 38. Kf2 $1 {
[%emt 0:01:19]} Nxf4 $2 {[%emt 0:00:06]} (38... Kc7) 39. Rxh5 {[%emt 0:01:05]
White is clearly winning.} gxh5 {[%emt 0:03:13]} 40. Ne5+ {[%emt 0:00:31]} Kc7
{[%emt 0:01:59]} 41. f7 {[%emt 0:32:55]} d2 {[%emt 0:30:32]} 42. f8=Q {[%emt 0:
00:09] White threatens Qc5+ and mate.} d1=Q {[%emt 0:00:25]} 43. Qxf4 {[%emt 0:
00:15] Weighted Error Value: White=0.19 (very precise) / Black=0.55} 1-0

[Event "44th Chess Olympiad Women 2022"]
[Site "Chennai"]
[Date "2022.08.01"]
[Round "4.4"]
[White "Socko, Monika"]
[Black "Peng, Zhaoqin"]
[Result "1-0"]
[WhiteElo "2416"]
[BlackElo "2349"]
[Annotator "TA"]
[PlyCount "73"]
[EventDate "2022.??.??"]
[TimeControl "60"]

{[%evp 15,73,29,32,48,58,67,56,56,53,60,103,81,130,79,116,129,133,124,112,120,
197,200,186,190,192,145,152,149,145,145,145,145,155,145,165,164,152,145,145,
146,176,174,172,163,189,161,175,163,174,136,133,106,107,88,97,21,152,120,151,
135]} 1. d4 {[%emt 0:00:03]} d5 {[%emt 0:00:14]} 2. c4 {[%emt 0:00:06]} dxc4 {
[%emt 0:00:05]} 3. e4 {[%emt 0:00:09][%cal Ye2e4,Ye4e5]} e5 {[%emt 0:00:00]} 4.
Nf3 {[%emt 0:01:08]} exd4 {[%emt 0:00:19]} 5. Bxc4 {[%emt 0:00:31]} Bb4+ {
[%emt 0:00:20]} 6. Nbd2 {[%emt 0:00:49]} Nc6 {[%emt 0:00:40]} 7. O-O {[%emt 0:
00:20]} Nf6 {[%emt 0:07:38]} 8. e5 {[%emt 0:00:21]} Nd5 {[%emt 0:04:04]} 9. Nb3
{[%emt 0:00:19] D20: Queen's Gambit Accepted: 3 e3 and 3 e4.} O-O {[%emt 0:04:
57]} 10. Nbxd4 {[%emt 0:04:42]} Nde7 {[%emt 0:05:09] [#]} 11. Bg5 $146 {
[%emt 0:09:38][%cal Yc1g5,Yg5e3,Ye3d4] White is slightly better.} ({
Predecessor:} 11. e6 fxe6 12. Nxe6 Bxe6 13. Bxe6+ Kh8 14. Qb3 Ng6 15. Ng5 Nf4
16. Bxf4 Rxf4 17. Nf7+ Rxf7 18. Bxf7 {1-0 (31) Cheung,J-Van Den Broek,W
Netherlands 2001}) 11... Nxd4 {[%emt 0:24:10]} 12. Nxd4 {[%emt 0:01:07]} h6 {
[%emt 0:00:04] [#]} 13. Be3 {[%emt 0:14:56]} a6 {[%emt 0:15:36]} (13... c6 $142
) 14. Qf3 {[%emt 0:13:40]} ({White should play} 14. a3 Ba5 15. e6 fxe6 16. Nxe6
Qxd1 17. Rfxd1 (17. Raxd1 Bxe6 18. Bxe6+ Kh8 $16) 17... Bxe6 18. Bxe6+ Kh8 19.
Rd7) 14... Qe8 {[%emt 0:09:25]} 15. Qe4 {[%emt 0:06:11]} Bc5 {[%emt 0:08:03]}
16. Bd3 {[%emt 0:08:04][%csl Gd3][%cal Re4h7] 0x0.001f21054b64dp-1022s more
active pieces. The black rooks are badly placed.} Ng6 {[%emt 0:01:03]} 17. f4 {
[%emt 0:00:55]} Bxd4 {[%emt 0:04:37]} (17... Bb6 $16) 18. Bxd4 $18 {[%emt 0:00:
00] f5 is the strong threat.} Qc6 {[%emt 0:00:08]} 19. Qxc6 {[%emt 0:02:35]}
bxc6 {[%emt 0:00:02]} 20. Be4 {[%emt 0:01:08]} (20. Bc5 $18) 20... Ne7 $16 {
[%emt 0:03:30]} 21. Bc5 {[%emt 0:03:30] A strong pair of Bishops.} Re8 {
[%emt 0:00:06]} 22. Bxe7 {[%emt 0:00:41]} Rxe7 {[%emt 0:00:01]} 23. Bxc6 {
[%emt 0:00:07]} Rb8 {[%emt 0:00:07]} 24. b3 {[%emt 0:00:23]} g5 {[%emt 0:03:24]
} 25. Rad1 {[%emt 0:04:10] Threatens to win with Rd8+.} Bg4 {[%emt 0:00:45]}
26. Rd4 {[%emt 0:00:18]} gxf4 {[%emt 0:01:07]} 27. Rdxf4 {[%emt 0:03:57]} Bh5 {
[%emt 0:02:22] [#]} 28. Re1 $1 {[%emt 0:00:39]} Rb6 {[%emt 0:00:51]} 29. Rc4 {
[%emt 0:01:31]} Kg7 {[%emt 0:02:09]} 30. h4 {[%emt 0:02:53]} Bg6 {[%emt 0:00:
00]} 31. Kf2 {[%emt 0:00:09]} Bf5 {[%emt 0:01:29]} 32. Bf3 {[%emt 0:03:23]} Rb5
{[%emt 0:00:57]} 33. g4 {[%emt 0:01:04]} Be6 {[%emt 0:00:42]} 34. Rc6 {[%emt 0:
00:00]} a5 {[%emt 0:00:12][%cal Ya5a4]} 35. Re3 {[%emt 0:01:17]} (35. Rc2 $16)
35... Bd5 {[%emt 0:00:55]} (35... a4 $11 {keeps the balance.}) 36. Rc2 {
[%emt 0:02:15]} Be6 {[%emt 0:00:52]} 37. Kg3 {[%emt 0:00:38] Weighted Error
Value: White=0.14 (very precise) /Black=0.22 (precise)} 1-0

[Event "44th Chess Olympiad Women 2022"]
[Site "Chennai"]
[Date "2022.08.01"]
[Round "4.4"]
[White "Van Foreest, Machteld"]
[Black "Kiolbasa, Oliwia"]
[Result "0-1"]
[WhiteElo "2299"]
[BlackElo "2376"]
[Annotator "TA"]
[PlyCount "80"]
[EventDate "2022.??.??"]
[TimeControl "60"]

{[%evp 14,80,10,0,14,0,0,0,0,0,0,0,0,-7,-12,-8,-21,-113,-93,-97,-89,-114,-122,
-189,-187,-185,-192,-195,-168,-192,-179,-172,-177,-181,-183,-236,-212,-312,
-331,-315,-303,-318,-303,-347,-331,-484,-489,-322,-462,-464,-459,-383,-366,
-931,-762,-29979,-29980,-29980,-29981,-29981,-29982,-29983,-29984,-29984,
-29983,-29983,-29984,-29983,-29983]} 1. e4 {[%emt 0:00:06]} e5 {[%emt 0:00:10]}
2. Nf3 {[%emt 0:00:09]} Nc6 {[%emt 0:00:10]} 3. d4 {[%emt 0:00:30]} exd4 {
[%emt 0:00:14]} 4. Nxd4 {[%emt 0:00:07]} Bc5 {[%emt 0:00:26]} 5. Nb3 {[%emt 0:
00:00]} Bb6 {[%emt 0:00:12]} 6. Nc3 {[%emt 0:00:08]} Nf6 {[%emt 0:00:25]} 7.
Bg5 {[%emt 0:00:05]} h6 {[%emt 0:01:56] 7...0-0 is the hot move.} 8. Bh4 $1 {
[%emt 0:00:05]} O-O {[%emt 0:01:56] C45: Scotch Game.} 9. Qe2 {[%emt 0:03:24]}
a5 {[%emt 0:01:16]} 10. a4 $1 {[%emt 0:04:33]} Nd4 {[%emt 0:00:49] The
position is equal.} 11. Qd3 {[%emt 0:07:30]} Nxb3 {[%emt 0:01:43]} 12. cxb3 {
[%emt 0:00:09]} c6 {[%emt 0:04:47]} 13. Be2 {[%emt 0:08:02] Black must now
prevent e5.} Re8 $36 {[%emt 0:11:29] [#] Black is pushing.} 14. O-O-O $146 {
[%emt 0:04:15]} ({Predecessor:} 14. f4 d5 15. e5 g5 16. fxg5 Ng4 17. Bxg4 Bxg4
18. Qg3 Qd7 19. Kd2 Rxe5 20. Rae1 Rxe1 21. Rxe1 {0-1 (49) Tomczak,J (2625)
-Sanal,V (2545) Batumi 2019}) 14... d5 {[%emt 0:05:47]} 15. f4 {[%emt 0:21:09]}
(15. exd5 $11 {remains equal.} g5 16. Bg3) 15... g5 {[%emt 0:00:00] White is
on the road to losing.} (15... dxe4 16. Nxe4 Qxd3 17. Nxf6+ gxf6 18. Bxd3 $11)
16. fxg5 {[%emt 0:09:08]} Nxe4 {[%emt 0:00:12]} 17. Rhf1 {[%emt 0:04:52]
Prevents Bf5. And now Bh5 would win.} hxg5 {[%emt 0:05:09]} 18. Bh5 {[%emt 0:
08:54]} gxh4 $19 {[%emt 0:01:23]} 19. Bxf7+ {[%emt 0:01:34]} Kg7 $1 {[%emt 0:
01:09] Strongly threatening ...Qg5+.} 20. Bxe8 {[%emt 0:02:50]} Qg5+ $1 {
[%emt 0:05:23]} (20... Qxe8 21. Rde1 Nf2 22. Qd2 $11 (22. Rxe8 Nxd3+ 23. Kd2
Bc5 $17) (22. Qf3 Bg4 $17)) 21. Kb1 {[%emt 0:02:35] [#]} Nf2 $1 {[%emt 0:00:09]
Chess con chili. Active counter play!} 22. Rxf2 {[%emt 0:06:43]} ({But not} 22.
Qc2 $2 Bf5 23. Rxf2 Bxf2 $19) 22... Bxf2 {[%emt 0:00:13]} 23. Ka2 {[%emt 0:02:
52] [#]} Bf5 $1 {[%emt 0:04:05]} 24. Qf3 {[%emt 0:03:01]} (24. Qe2 $142 Be3 25.
Bh5) 24... Be3 {[%emt 0:05:23] This bishop pair is nice.} ({Inferior is} 24...
Rxe8 25. Qxf2 Re7 26. Rf1 $11) 25. Rf1 {[%emt 0:01:36]} (25. g4 {was called
for.} hxg3 26. h4) 25... Rxe8 {[%emt 0:00:50]} 26. Qxf5 {[%emt 0:00:06]} Qxf5 {
[%emt 0:00:09]} 27. Rxf5 {[%emt 0:00:03] Endgame KRB-KRN} d4 {[%emt 0:04:00]
[%cal Yd5d4,Yd4d3]} 28. Nd1 {[%emt 0:01:11]} Bg1 {[%emt 0:04:01]} 29. Nf2 {
[%emt 0:02:05]} (29. b4 $142 axb4 30. h3) 29... Kg6 {[%emt 0:07:51]} 30. Rf4 {
[%emt 0:00:58]} Bxf2 {[%emt 0:00:00]} ({Stronger than} 30... Bxh2 31. Rxh4 Be5
32. Kb1 $15) 31. Rxf2 {[%emt 0:00:00] KR-KR} d3 {[%emt 0:00:06] ...Rd8 is the
strong threat.} 32. Rd2 {[%emt 0:02:44]} Rd8 {[%emt 0:00:53]} 33. b4 $2 {
[%emt 0:00:12]} (33. Kb1 Kf5 34. Kc1) 33... axb4 {[%emt 0:00:17]} 34. b3 {
[%emt 0:00:48]} Kf5 {[%emt 0:00:00] Black mates.} 35. Kb2 {[%emt 0:00:22]} Ke4
{[%emt 0:00:28]} 36. Kc1 {[%emt 0:00:09]} Ke3 {[%emt 0:00:23]} 37. g3 {[%emt 0:
01:13]} h3 {[%emt 0:00:44]} 38. g4 {[%emt 0:01:15]} Rg8 {[%emt 0:00:48]} 39.
Rd1 {[%emt 0:00:42]} Rxg4 {[%emt 0:00:08]} 40. Re1+ {[%emt 0:00:24]} Kd4 {
[%emt 0:00:06] Weighted Error Value: White=0.44/Black=0.01 (flawless)} 0-1

[Event "44th Chess Olympiad Women 2022"]
[Site "Chennai"]
[Date "2022.08.01"]
[Round "4.5"]
[White "Blagojevic, Tijana"]
[Black "Guichard, Pauline"]
[Result "1/2-1/2"]
[WhiteElo "2330"]
[BlackElo "2379"]
[Annotator "TA"]
[PlyCount "109"]
[EventDate "2022.??.??"]
[TimeControl "60"]

{[%evp 17,109,-1,5,-6,0,0,8,0,31,41,41,38,30,35,32,37,37,25,29,23,19,10,40,33,
42,0,5,1,8,0,0,0,0,0,0,0,0,0,10,2,11,0,0,0,0,0,0,0,18,12,20,12,13,10,12,12,88,
75,157,168,148,0,120,0,150,150,147,145,116,5,8,0,132,76,119,119,112,114,132,0,
0,0,0,0,0,0,0,0,0,0,0,0,0,0]} 1. e4 {[%emt 0:00:06]} e5 {[%emt 0:00:05]} 2. Nf3
{[%emt 0:00:09]} Nc6 {[%emt 0:00:08]} 3. Nc3 {[%emt 0:00:06]} Nf6 {[%emt 0:00:
00]} 4. d4 {[%emt 0:00:13]} exd4 {[%emt 0:00:22]} 5. Nxd4 {[%emt 0:00:06]} Bb4
{[%emt 0:00:12]} 6. Nxc6 {[%emt 0:00:21]} bxc6 {[%emt 0:00:09]} 7. Bd3 {
[%emt 0:00:13]} d5 {[%emt 0:00:20]} 8. exd5 {[%emt 0:00:10]} O-O {[%emt 0:00:
00] is cutting edge theory.} 9. O-O {[%emt 0:00:16]} cxd5 {[%emt 0:00:24]} 10.
Qf3 {[%emt 0:00:20] C47: Scotch Four Knights and Four Knights with 4 g3.} Bg4 {
[%emt 0:05:18]} 11. Qg3 {[%emt 0:00:17]} Qd7 {[%emt 0:00:25]} 12. h3 {[%emt 0:
00:00]} Bd6 {[%emt 0:14:09]} 13. Bf4 {[%emt 0:07:16]} Bxf4 {[%emt 0:11:53]} 14.
Qxf4 {[%emt 0:00:07] [#]} Bh5 $146 {[%emt 0:00:12]} ({Predecessor:} 14... Be6
15. Rad1 c5 16. Qg5 Rab8 17. b3 h6 18. Qh4 Qc7 19. Nb5 Qc6 20. c4 d4 {0-1 (46)
Saravanan,K-Cook,M (2017) England 2014}) 15. Qd4 {[%emt 0:05:26]} c6 {[%emt 0:
00:00]} 16. Rfe1 {[%emt 0:03:36]} Rfe8 {[%emt 0:01:18]} 17. Na4 {[%emt 0:02:48]
[%cal Yc3a4,Ya4c5,Yc5b3]} Bg6 {[%emt 0:02:04]} 18. Nc5 {[%emt 0:04:01]} Qc7 {
[%emt 0:02:39]} 19. Qc3 {[%emt 0:23:54]} Bxd3 {[%emt 0:16:27]} 20. cxd3 {
[%emt 0:00:14]} Nd7 {[%emt 0:05:54]} 21. Nb3 {[%emt 0:05:46]} c5 {[%emt 0:00:
00]} 22. Rac1 {[%emt 0:02:36]} Qb6 {[%emt 0:11:47]} 23. Rc2 {[%emt 0:05:25]} (
23. Rxe8+ {keeps more tension.} Rxe8 24. Nxc5 Nxc5 25. Qxc5 Qxb2 26. Qe3) 23...
d4 {[%emt 0:06:16]} 24. Qd2 {[%emt 0:00:56]} h6 {[%emt 0:00:55]} 25. Qd1 {
[%emt 0:05:37]} Qb5 {[%emt 0:01:12]} 26. Rce2 {[%emt 0:00:25]} Rxe2 {[%emt 0:
00:00]} 27. Rxe2 {[%emt 0:00:30]} a5 {[%emt 0:02:43]} 28. Re7 {[%emt 0:09:33]}
Nf6 {[%emt 0:05:03] Against Qh5} 29. Qc2 {[%emt 0:01:48]} a4 {[%emt 0:03:16]}
30. Qxc5 {[%emt 0:03:38]} Qxd3 {[%emt 0:00:10]} 31. Nxd4 $40 {[%emt 0:00:53]
White attacks.} Qb1+ {[%emt 0:03:10]} 32. Kh2 {[%emt 0:00:04]} Qxb2 {[%emt 0:
00:34]} 33. Qc4 {[%emt 0:00:37]} Rf8 {[%emt 0:00:16]} 34. Re2 {[%emt 0:04:07]}
Qb8+ {[%emt 0:00:03]} 35. g3 {[%emt 0:00:18]} Qa8 {[%emt 0:00:00]} 36. Nc6 {
[%emt 0:01:18]} a3 {[%emt 0:01:12]} (36... Re8 $11 {keeps the balance.} 37.
Rxe8+ Nxe8) 37. Re7 $16 {[%emt 0:00:15]} Nh7 {[%emt 0:01:11]} (37... Kh7 $142)
38. Ra7 {[%emt 0:00:40]} Qe8 {[%emt 0:00:10]} 39. Re7 {[%emt 0:00:00]} Qa8 {
[%emt 0:00:04]} 40. Ra7 {[%emt 0:00:30]} Qe8 {[%emt 0:00:04]} 41. Ne7+ {
[%emt 0:06:37]} Kh8 {[%emt 0:00:16]} 42. Qc3 {[%emt 0:00:27][%cal Ye7g6]
Strongly threatening Ng6+! White is much more active.} Qb8 {[%emt 0:06:48]} 43.
Ng6+ {[%emt 0:00:46]} Kg8 $11 {[%emt 0:00:11] [#]} 44. Ne7+ {[%emt 0:00:05]} ({
Reject} 44. Nxf8 Qxa7 45. Nxh7 Qxf2+ 46. Kh1 Qxa2 47. Nf6+ gxf6 48. Qc8+ Kh7
49. Qf5+ Kh8 50. Qc8+ Kh7 51. Qf5+ Kh8 52. Qc8+ Kh7 $17) (44. Rc7 $1 $11 Rd8
45. Ne7+ (45. Qc4 Ng5 $11) 45... Kh8 46. Rc8 Rxc8 47. Qxc8+ Qxc8 48. Nxc8)
44... Kh8 $16 {[%emt 0:00:04]} 45. Nf5 {[%emt 0:02:18]} Nf6 {[%emt 0:01:28]}
46. Qxa3 {[%emt 0:01:53]} Kh7 {[%emt 0:08:10]} 47. Kg2 {[%emt 0:10:04]} Qe5 {
[%emt 0:04:10][%cal Ye5f5]} 48. Qxf8 {[%emt 0:01:17]} (48. Qf3 $16) 48... Qe4+
$11 {[%emt 0:00:12] The position is equal.} 49. Kh2 {[%emt 0:00:45][%csl Gf5]
[%cal Rf8g7] [#]} Qxf5 {[%emt 0:00:11] Endgame KQR-KQN} 50. Kg1 {[%emt 0:09:25]
} Qb1+ {[%emt 0:00:29]} 51. Kg2 {[%emt 0:00:28]} Qe4+ {[%emt 0:00:00]} 52. Kg1
{[%emt 0:04:26]} Qb1+ {[%emt 0:00:07]} 53. Kg2 {[%emt 0:01:02]} Qe4+ {[%emt 0:
00:07]} 54. Kg1 {[%emt 0:00:06]} Qb1+ {[%emt 0:00:04]} 55. Kg2 {[%emt 0:00:56]
Weighted Error Value: White=0.18 (very precise) /Black=0.09 (flawless)} 1/2-1/2